[Event "Late-Titled-Tuesday-Blitz-January-23-2024"]
[Site "Chess.com"]
[Date "2024.01.23"]
[Round "3"]
[White "dsanchez1973"]
[Black "Perecke"]
[Result "0-1"]
[WhiteElo "2174"]
[BlackElo "2547"]
[TimeControl "180+1"]
[EndTime "14:24:50 PST"]
[Termination "Perecke won by resignation"]

1. e4 {[%clk 0:03:00.9]} 1... c5 {[%clk 0:02:55.2]} 2. Nf3 {[%clk 0:03:00.6]}
2... e6 {[%clk 0:02:55.5]} 3. d4 {[%clk 0:03:01.2]} 3... cxd4 {[%clk 0:02:56.4]}
4. Nxd4 {[%clk 0:03:01.6]} 4... Nc6 {[%clk 0:02:56.9]} 5. Nc3 {[%clk 0:03:01.5]}
5... Qc7 {[%clk 0:02:57.3]} 6. Nxc6 {[%clk 0:03:01.7]} 6... bxc6 {[%clk
0:02:57.5]} 7. Bd3 {[%clk 0:03:02.6]} 7... d5 {[%clk 0:02:57.6]} 8. O-O {[%clk
0:03:03.1]} 8... Nf6 {[%clk 0:02:57.6]} 9. Re1 {[%clk 0:03:03.5]} 9... Bc5
{[%clk 0:02:54.2]} 10. e5 {[%clk 0:03:02.9]} 10... Nd7 {[%clk 0:02:53]} 11. Bf4
{[%clk 0:03:02.6]} 11... O-O {[%clk 0:02:48.7]} 12. Qh5 {[%clk 0:03:02.3]} 12...
g6 {[%clk 0:02:48.9]} 13. Qh6 {[%clk 0:03:02.7]} 13... Re8 {[%clk 0:02:43]} 14.
h4 {[%clk 0:03:02.5]} 14... Bd4 {[%clk 0:02:42.7]} 15. Qg5 {[%clk 0:02:59]}
15... Qb6 {[%clk 0:02:31]} 16. Nd1 {[%clk 0:02:54]} 16... Ba6 {[%clk 0:02:30.8]}
17. c3 {[%clk 0:02:50]} 17... Bxe5 {[%clk 0:01:41.3]} 18. Bxg6 {[%clk
0:02:34.5]} 18... Bxf4 {[%clk 0:01:38.3]} 19. Bxf7+ {[%clk 0:02:29.5]} 19...
Kxf7 {[%clk 0:01:38.4]} 20. Qxf4+ {[%clk 0:02:28.9]} 20... Nf6 {[%clk
0:01:36.8]} 21. Ne3 {[%clk 0:02:26.5]} 21... e5 {[%clk 0:01:33.5]} 22. Qh6
{[%clk 0:02:23]} 22... Bd3 {[%clk 0:01:27]} 23. g4 {[%clk 0:02:09]} 23... Rg8
{[%clk 0:01:24.2]} 24. g5 {[%clk 0:02:06.7]} 24... Rg6 {[%clk 0:01:22.7]} 0-1

[Event "Late-Titled-Tuesday-Blitz-January-23-2024"]
[Site "Chess.com"]
[Date "2024.01.23"]
[Round "3"]
[White "CaspiIsrael"]
[Black "SergioMoralesG"]
[Result "1-0"]
[WhiteElo "2670"]
[BlackElo "2461"]
[TimeControl "180+1"]
[EndTime "14:24:59 PST"]
[Termination "CaspiIsrael won by resignation"]

1. e4 {[%clk 0:03:00.9]} 1... c5 {[%clk 0:02:59.4]} 2. Nc3 {[%clk 0:03:01]} 2...
Nc6 {[%clk 0:02:59]} 3. Bb5 {[%clk 0:03:00]} 3... Nd4 {[%clk 0:02:58]} 4. Bc4
{[%clk 0:02:58.8]} 4... e6 {[%clk 0:02:56.4]} 5. Nge2 {[%clk 0:02:59]} 5... a6
{[%clk 0:02:56.7]} 6. a4 {[%clk 0:02:56.8]} 6... Qc7 {[%clk 0:02:53.1]} 7. d3
{[%clk 0:02:56.1]} 7... Nf6 {[%clk 0:02:52.8]} 8. Nxd4 {[%clk 0:02:51.2]} 8...
cxd4 {[%clk 0:02:52.6]} 9. Ne2 {[%clk 0:02:51.9]} 9... Bc5 {[%clk 0:02:44.1]}
10. O-O {[%clk 0:02:50.7]} 10... d6 {[%clk 0:02:37.5]} 11. Bb3 {[%clk
0:02:48.7]} 11... O-O {[%clk 0:02:37]} 12. Ng3 {[%clk 0:02:43.2]} 12... b6
{[%clk 0:02:28.5]} 13. f4 {[%clk 0:02:42.6]} 13... Bb7 {[%clk 0:02:28.3]} 14.
Bd2 {[%clk 0:02:42.9]} 14... a5 {[%clk 0:02:19.3]} 15. Kh1 {[%clk 0:02:42.5]}
15... Bb4 {[%clk 0:02:15.8]} 16. Bc1 {[%clk 0:02:39.3]} 16... Bc6 {[%clk
0:02:06.2]} 17. Qf3 {[%clk 0:02:37.2]} 17... b5 {[%clk 0:02:04]} 18. axb5 {[%clk
0:02:31.2]} 18... Bxb5 {[%clk 0:02:04]} 19. Rf2 {[%clk 0:02:23.7]} 19... a4
{[%clk 0:02:03.8]} 20. Ba2 {[%clk 0:02:24]} 20... Rac8 {[%clk 0:02:01.2]} 21. f5
{[%clk 0:02:23.9]} 21... Bd7 {[%clk 0:01:49]} 22. Bg5 {[%clk 0:02:21.6]} 22...
Ne8 {[%clk 0:00:57.9]} 23. fxe6 {[%clk 0:02:19.2]} 1-0

[Event "Late-Titled-Tuesday-Blitz-January-23-2024"]
[Site "Chess.com"]
[Date "2024.01.23"]
[Round "3"]
[White "colegiodemadrid"]
[Black "IlanSchnaider"]
[Result "0-1"]
[WhiteElo "2502"]
[BlackElo "2758"]
[TimeControl "180+1"]
[EndTime "14:25:07 PST"]
[Termination "IlanSchnaider won by resignation"]

1. Nf3 {[%clk 0:02:59.8]} 1... Nf6 {[%clk 0:02:58.3]} 2. c4 {[%clk 0:02:59.3]}
2... g6 {[%clk 0:02:58.2]} 3. b3 {[%clk 0:02:59.6]} 3... Bg7 {[%clk 0:02:58.9]}
4. Bb2 {[%clk 0:03:00.2]} 4... O-O {[%clk 0:02:58.3]} 5. d4 {[%clk 0:03:00.9]}
5... b6 {[%clk 0:02:55.5]} 6. g3 {[%clk 0:03:00.2]} 6... Bb7 {[%clk 0:02:55.4]}
7. Bg2 {[%clk 0:03:00.8]} 7... e6 {[%clk 0:02:55.7]} 8. O-O {[%clk 0:03:01.1]}
8... c5 {[%clk 0:02:55.3]} 9. e3 {[%clk 0:02:59.5]} 9... d5 {[%clk 0:02:41.6]}
10. cxd5 {[%clk 0:02:57.9]} 10... Nxd5 {[%clk 0:02:37.1]} 11. Nbd2 {[%clk
0:02:53.8]} 11... Nc6 {[%clk 0:02:29.6]} 12. a3 {[%clk 0:02:44.7]} 12... cxd4
{[%clk 0:02:29.2]} 13. Nxd4 {[%clk 0:02:44.1]} 13... Nxd4 {[%clk 0:02:29.4]} 14.
Bxd4 {[%clk 0:02:44.6]} 14... Bxd4 {[%clk 0:02:27.6]} 15. exd4 {[%clk
0:02:45.5]} 15... Nc3 {[%clk 0:02:28.3]} 16. Bxb7 {[%clk 0:02:22.1]} 16... Nxd1
{[%clk 0:02:25.5]} 17. Rfxd1 {[%clk 0:02:16.9]} 17... Rb8 {[%clk 0:02:23.8]} 18.
Bg2 {[%clk 0:02:15.6]} 18... Qxd4 {[%clk 0:02:23]} 19. Nc4 {[%clk 0:02:15.3]}
19... Qf6 {[%clk 0:02:21.6]} 20. Nd6 {[%clk 0:02:14.6]} 20... Rfd8 {[%clk
0:02:20.8]} 21. Ne4 {[%clk 0:02:14.8]} 21... Qe5 {[%clk 0:02:20.5]} 22. b4
{[%clk 0:02:12.1]} 22... a5 {[%clk 0:02:18.1]} 23. bxa5 {[%clk 0:02:10.5]} 23...
bxa5 {[%clk 0:02:19]} 24. h4 {[%clk 0:02:09.9]} 24... h6 {[%clk 0:02:14.1]} 25.
Rac1 {[%clk 0:02:05.8]} 25... Qb2 {[%clk 0:02:09]} 26. Rxd8+ {[%clk 0:02:00.1]}
26... Rxd8 {[%clk 0:02:09.9]} 27. Rc7 {[%clk 0:01:59.6]} 27... Qxa3 {[%clk
0:02:01.3]} 28. h5 {[%clk 0:01:58.3]} 28... Qa1+ {[%clk 0:01:58.5]} 29. Kh2
{[%clk 0:01:57.5]} 29... Qe5 {[%clk 0:01:58.6]} 30. Rc5 {[%clk 0:01:56]} 30...
Rd5 {[%clk 0:01:53.6]} 31. Rc8+ {[%clk 0:01:53]} 31... Kg7 {[%clk 0:01:53.6]}
32. hxg6 {[%clk 0:01:47.8]} 32... Qh5+ {[%clk 0:01:53.6]} 33. Kg1 {[%clk
0:01:45.4]} 33... Rd1+ {[%clk 0:01:52.7]} 34. Bf1 {[%clk 0:01:44.5]} 34... Rxf1+
{[%clk 0:01:51.4]} 35. Kxf1 {[%clk 0:01:44.4]} 35... Qh1+ {[%clk 0:01:52.3]} 0-1

[Event "Late-Titled-Tuesday-Blitz-January-23-2024"]
[Site "Chess.com"]
[Date "2024.01.23"]
[Round "3"]
[White "Igor_Lysyj"]
[Black "Yurovskykh_Oleksandr"]
[Result "1-0"]
[WhiteElo "2887"]
[BlackElo "2616"]
[TimeControl "180+1"]
[EndTime "14:25:24 PST"]
[Termination "Igor_Lysyj won by checkmate"]

1. d4 {[%clk 0:02:59.9]} 1... d5 {[%clk 0:02:58]} 2. c4 {[%clk 0:02:59.4]} 2...
e6 {[%clk 0:02:58.5]} 3. Nf3 {[%clk 0:02:59.1]} 3... Nf6 {[%clk 0:02:58.6]} 4.
g3 {[%clk 0:02:59.4]} 4... Bb4+ {[%clk 0:02:59.1]} 5. Bd2 {[%clk 0:02:59.1]}
5... Be7 {[%clk 0:02:59.2]} 6. Bg2 {[%clk 0:02:58.9]} 6... O-O {[%clk
0:02:59.5]} 7. O-O {[%clk 0:02:59.1]} 7... c6 {[%clk 0:03:00.1]} 8. Qc2 {[%clk
0:02:59.1]} 8... Nbd7 {[%clk 0:03:00.5]} 9. Rd1 {[%clk 0:02:57.7]} 9... b6
{[%clk 0:03:00.5]} 10. Bc3 {[%clk 0:02:57.8]} 10... Bb7 {[%clk 0:02:47.3]} 11.
Nbd2 {[%clk 0:02:57.1]} 11... c5 {[%clk 0:02:41]} 12. dxc5 {[%clk 0:02:51.6]}
12... Nxc5 {[%clk 0:02:18.6]} 13. Ng5 {[%clk 0:02:45]} 13... h6 {[%clk
0:02:05.5]} 14. Bxf6 {[%clk 0:02:44.2]} 14... hxg5 {[%clk 0:02:05.9]} 15. Bd4
{[%clk 0:02:42.9]} 15... Rc8 {[%clk 0:01:42.6]} 16. Nf1 {[%clk 0:02:35.9]} 16...
Rc7 {[%clk 0:01:20.2]} 17. Ne3 {[%clk 0:02:27.1]} 17... Qa8 {[%clk 0:01:11.3]}
18. cxd5 {[%clk 0:02:23]} 18... exd5 {[%clk 0:00:59.1]} 19. Qf5 {[%clk
0:02:06.4]} 19... Rd8 {[%clk 0:00:48.5]} 20. Qe5 {[%clk 0:01:53.7]} 20... Rcd7
{[%clk 0:00:42.7]} 21. Qxg7# {[%clk 0:01:53.2]} 1-0

[Event "Late-Titled-Tuesday-Blitz-January-23-2024"]
[Site "Chess.com"]
[Date "2024.01.23"]
[Round "3"]
[White "Squirlolz"]
[Black "underthebridge1999"]
[Result "0-1"]
[WhiteElo "2570"]
[BlackElo "2404"]
[TimeControl "180+1"]
[EndTime "14:25:25 PST"]
[Termination "underthebridge1999 won by checkmate"]

1. Nc3 {[%clk 0:02:59.4]} 1... d5 {[%clk 0:02:58.6]} 2. e4 {[%clk 0:02:58.1]}
2... d4 {[%clk 0:02:50.8]} 3. Nce2 {[%clk 0:02:57.4]} 3... c5 {[%clk 0:02:51.3]}
4. Ng3 {[%clk 0:02:56.5]} 4... Nc6 {[%clk 0:02:51.7]} 5. Bc4 {[%clk 0:02:56.4]}
5... e5 {[%clk 0:02:50.9]} 6. a3 {[%clk 0:02:56.3]} 6... Nf6 {[%clk 0:02:50.9]}
7. d3 {[%clk 0:02:56.6]} 7... Bd6 {[%clk 0:02:48.9]} 8. N1e2 {[%clk 0:02:51.9]}
8... h5 {[%clk 0:02:48.4]} 9. O-O {[%clk 0:02:48.1]} 9... h4 {[%clk 0:02:47.6]}
10. Nh1 {[%clk 0:02:48.9]} 10... Bg4 {[%clk 0:02:44.7]} 11. h3 {[%clk
0:02:46.5]} 11... Bh5 {[%clk 0:02:39.5]} 12. f4 {[%clk 0:02:46.6]} 12... exf4
{[%clk 0:02:34.7]} 13. Bxf4 {[%clk 0:02:45.6]} 13... Ne5 {[%clk 0:02:35.4]} 14.
Bb5+ {[%clk 0:02:31.8]} 14... Ke7 {[%clk 0:02:34]} 15. Bg5 {[%clk 0:02:29.8]}
15... Qc7 {[%clk 0:02:33]} 16. Qd2 {[%clk 0:02:18.7]} 16... a6 {[%clk
0:02:30.3]} 17. Nf4 {[%clk 0:02:17.1]} 17... Kf8 {[%clk 0:02:10.4]} 18. Bxf6
{[%clk 0:01:59.9]} 18... gxf6 {[%clk 0:02:11.3]} 19. Nd5 {[%clk 0:01:57.7]}
19... Qb8 {[%clk 0:01:57.9]} 20. Bc4 {[%clk 0:01:50.5]} 20... Nxc4 {[%clk
0:01:49.2]} 21. dxc4 {[%clk 0:01:51.4]} 21... Bh2+ {[%clk 0:01:49.9]} 22. Kf2
{[%clk 0:01:51.1]} 22... Qe5 {[%clk 0:01:48.8]} 23. Rae1 {[%clk 0:01:04.6]}
23... Qg3+ {[%clk 0:01:44.1]} 24. Nxg3 {[%clk 0:00:59.9]} 24... hxg3# {[%clk
0:01:45]} 0-1

[Event "Late-Titled-Tuesday-Blitz-January-23-2024"]
[Site "Chess.com"]
[Date "2024.01.23"]
[Round "3"]
[White "chegueps"]
[Black "TheoSlade"]
[Result "1-0"]
[WhiteElo "2679"]
[BlackElo "2468"]
[TimeControl "180+1"]
[EndTime "14:25:27 PST"]
[Termination "chegueps won by checkmate"]

1. d4 {[%clk 0:02:57.3]} 1... d5 {[%clk 0:02:59.9]} 2. Nf3 {[%clk 0:02:56.6]}
2... e6 {[%clk 0:03:00.2]} 3. Bg5 {[%clk 0:02:56.3]} 3... Be7 {[%clk 0:02:58.3]}
4. Bxe7 {[%clk 0:02:55.7]} 4... Nxe7 {[%clk 0:02:59.2]} 5. Nbd2 {[%clk
0:02:55.2]} 5... O-O {[%clk 0:02:58.7]} 6. e4 {[%clk 0:02:55.5]} 6... dxe4
{[%clk 0:02:53.1]} 7. Nxe4 {[%clk 0:02:56.4]} 7... b6 {[%clk 0:02:51.7]} 8. Bd3
{[%clk 0:02:55.2]} 8... Bb7 {[%clk 0:02:51.1]} 9. Qe2 {[%clk 0:02:54.9]} 9...
Nd7 {[%clk 0:02:47.8]} 10. O-O-O {[%clk 0:02:54.2]} 10... Nd5 {[%clk 0:02:41.6]}
11. Qd2 {[%clk 0:02:24.7]} 11... N5f6 {[%clk 0:02:39]} 12. Neg5 {[%clk
0:02:21.6]} 12... c5 {[%clk 0:02:28.6]} 13. c3 {[%clk 0:02:01.1]} 13... cxd4
{[%clk 0:02:22.2]} 14. Nxd4 {[%clk 0:02:02]} 14... Bxg2 {[%clk 0:02:14.6]} 15.
Rhg1 {[%clk 0:02:00.1]} 15... Bd5 {[%clk 0:02:14.9]} 16. Nxh7 {[%clk 0:01:49.4]}
16... Re8 {[%clk 0:01:20.3]} 17. Qh6 {[%clk 0:01:45.3]} 17... g6 {[%clk
0:01:18.1]} 18. Bxg6 {[%clk 0:01:42.6]} 18... fxg6 {[%clk 0:01:18.7]} 19. Rxg6+
{[%clk 0:01:38.2]} 19... Kf7 {[%clk 0:01:17.3]} 20. Qg7# {[%clk 0:01:11.3]} 1-0

[Event "Late-Titled-Tuesday-Blitz-January-23-2024"]
[Site "Chess.com"]
[Date "2024.01.23"]
[Round "3"]
[White "NikolaGry"]
[Black "MITerryble"]
[Result "0-1"]
[WhiteElo "2748"]
[BlackElo "3024"]
[TimeControl "180+1"]
[EndTime "14:25:36 PST"]
[Termination "MITerryble won by resignation"]

1. b3 {[%clk 0:03:00.9]} 1... d5 {[%clk 0:03:00]} 2. Bb2 {[%clk 0:03:00.6]} 2...
Bg4 {[%clk 0:03:00.4]} 3. Nf3 {[%clk 0:03:00.6]} 3... c6 {[%clk 0:03:00.3]} 4.
e3 {[%clk 0:02:59.5]} 4... Nd7 {[%clk 0:03:00.6]} 5. Be2 {[%clk 0:02:59.2]} 5...
Ngf6 {[%clk 0:03:01]} 6. h3 {[%clk 0:02:58.9]} 6... Bh5 {[%clk 0:03:01.1]} 7. c4
{[%clk 0:02:59.1]} 7... e6 {[%clk 0:03:01.1]} 8. Nc3 {[%clk 0:02:59.1]} 8... Bd6
{[%clk 0:03:00.7]} 9. d4 {[%clk 0:02:53.4]} 9... O-O {[%clk 0:02:59]} 10. O-O
{[%clk 0:02:52.9]} 10... a6 {[%clk 0:02:52.1]} 11. a4 {[%clk 0:02:50.4]} 11...
a5 {[%clk 0:02:47.5]} 12. Rc1 {[%clk 0:02:49.4]} 12... Re8 {[%clk 0:02:46.2]}
13. Re1 {[%clk 0:02:37.5]} 13... Qb8 {[%clk 0:02:45.9]} 14. g4 {[%clk
0:02:23.4]} 14... Bg6 {[%clk 0:02:46]} 15. Nh4 {[%clk 0:02:23.4]} 15... Bb4
{[%clk 0:02:34.2]} 16. Nxg6 {[%clk 0:02:20.1]} 16... hxg6 {[%clk 0:02:25]} 17.
Bf3 {[%clk 0:02:14.5]} 17... Ne4 {[%clk 0:02:15.9]} 18. Re2 {[%clk 0:02:07.1]}
18... f5 {[%clk 0:02:15.6]} 19. Nxe4 {[%clk 0:01:59.9]} 19... fxe4 {[%clk
0:02:12.8]} 20. Bg2 {[%clk 0:01:59.7]} 20... Rf8 {[%clk 0:02:12]} 21. Qc2 {[%clk
0:01:55.7]} 21... Rf7 {[%clk 0:01:57.5]} 22. Rf1 {[%clk 0:01:54.2]} 22... Qf8
{[%clk 0:01:57.6]} 23. Bc3 {[%clk 0:01:50.4]} 23... Bd6 {[%clk 0:01:55.3]} 24.
Qd1 {[%clk 0:01:36.2]} 24... Bc7 {[%clk 0:01:53.1]} 25. Rb2 {[%clk 0:01:33.7]}
25... Qd6 {[%clk 0:01:47.9]} 26. Re1 {[%clk 0:01:20.3]} 26... Qh2+ {[%clk
0:01:46]} 27. Kf1 {[%clk 0:01:20.3]} 27... Raf8 {[%clk 0:01:44.2]} 28. Ree2
{[%clk 0:01:11.4]} 28... Rf3 {[%clk 0:01:42.3]} 29. b4 {[%clk 0:01:09.7]} 29...
Rg3 {[%clk 0:01:42.4]} 0-1

[Event "Late-Titled-Tuesday-Blitz-January-23-2024"]
[Site "Chess.com"]
[Date "2024.01.23"]
[Round "3"]
[White "Svet_1502"]
[Black "Sjakkerntobi"]
[Result "0-1"]
[WhiteElo "2269"]
[BlackElo "2501"]
[TimeControl "180+1"]
[EndTime "14:25:37 PST"]
[Termination "Sjakkerntobi won by resignation"]

1. e4 {[%clk 0:03:00.9]} 1... c5 {[%clk 0:02:58.4]} 2. Nf3 {[%clk 0:02:55.6]}
2... Nf6 {[%clk 0:02:59]} 3. Nc3 {[%clk 0:02:53.4]} 3... d5 {[%clk 0:02:58.8]}
4. exd5 {[%clk 0:02:48.2]} 4... Nxd5 {[%clk 0:02:59.7]} 5. Bc4 {[%clk
0:02:46.2]} 5... e6 {[%clk 0:02:59]} 6. O-O {[%clk 0:02:45.6]} 6... Be7 {[%clk
0:02:58.9]} 7. d4 {[%clk 0:02:42.3]} 7... Nxc3 {[%clk 0:02:57.4]} 8. bxc3 {[%clk
0:02:42]} 8... O-O {[%clk 0:02:57.4]} 9. Be3 {[%clk 0:02:37.9]} 9... Qc7 {[%clk
0:02:56]} 10. Qe2 {[%clk 0:02:35.9]} 10... b6 {[%clk 0:02:55.2]} 11. Ne5 {[%clk
0:02:27.5]} 11... Bb7 {[%clk 0:02:54.3]} 12. Rad1 {[%clk 0:02:15.4]} 12... Bd6
{[%clk 0:02:52]} 13. Bf4 {[%clk 0:02:12.3]} 13... Nd7 {[%clk 0:02:51.6]} 14.
Nxf7 {[%clk 0:02:00.4]} 14... Bxf4 {[%clk 0:02:48.4]} 15. Qxe6 {[%clk
0:01:58.9]} 15... Nf6 {[%clk 0:01:59.3]} 16. dxc5 {[%clk 0:01:53.8]} 16... Rxf7
{[%clk 0:01:51.6]} 17. Qxf7+ {[%clk 0:01:27.2]} 17... Qxf7 {[%clk 0:01:50.4]}
18. Bxf7+ {[%clk 0:01:26.4]} 18... Kxf7 {[%clk 0:01:51.3]} 19. cxb6 {[%clk
0:01:22.8]} 19... axb6 {[%clk 0:01:52.2]} 20. Rb1 {[%clk 0:01:20.1]} 20... Bc7
{[%clk 0:01:44.5]} 21. c4 {[%clk 0:01:20.1]} 21... Nd7 {[%clk 0:01:44.6]} 22.
Rfd1 {[%clk 0:01:16.1]} 22... Nc5 {[%clk 0:01:44.6]} 0-1

[Event "Late-Titled-Tuesday-Blitz-January-23-2024"]
[Site "Chess.com"]
[Date "2024.01.23"]
[Round "3"]
[White "toninhojit"]
[Black "ClayK1ng"]
[Result "1-0"]
[WhiteElo "2473"]
[BlackElo "2257"]
[TimeControl "180+1"]
[EndTime "14:25:38 PST"]
[Termination "toninhojit won by resignation"]

1. e4 {[%clk 0:03:00.9]} 1... c5 {[%clk 0:02:56.4]} 2. Nf3 {[%clk 0:02:56.8]}
2... d6 {[%clk 0:02:56.7]} 3. Bc4 {[%clk 0:02:52.7]} 3... Nf6 {[%clk 0:02:52.7]}
4. d3 {[%clk 0:02:52.7]} 4... e6 {[%clk 0:02:51.2]} 5. O-O {[%clk 0:02:52.6]}
5... Be7 {[%clk 0:02:45.2]} 6. c3 {[%clk 0:02:50.1]} 6... O-O {[%clk 0:02:44]}
7. Bb3 {[%clk 0:02:49.5]} 7... b5 {[%clk 0:02:33.3]} 8. a4 {[%clk 0:02:47.6]}
8... c4 {[%clk 0:02:24.9]} 9. Bc2 {[%clk 0:02:43.6]} 9... cxd3 {[%clk
0:02:23.4]} 10. Bxd3 {[%clk 0:02:43]} 10... bxa4 {[%clk 0:02:23.3]} 11. Rxa4
{[%clk 0:02:41.6]} 11... Bb7 {[%clk 0:02:23.3]} 12. Bg5 {[%clk 0:02:36.6]} 12...
Nbd7 {[%clk 0:02:22]} 13. b4 {[%clk 0:02:30.8]} 13... a5 {[%clk 0:02:19.6]} 14.
Re1 {[%clk 0:02:23.7]} 14... h6 {[%clk 0:02:13.9]} 15. Bh4 {[%clk 0:02:20.8]}
15... axb4 {[%clk 0:02:05.1]} 16. Rxb4 {[%clk 0:02:18.8]} 16... Qc7 {[%clk
0:01:55.7]} 17. Bg3 {[%clk 0:02:11.1]} 17... Ne5 {[%clk 0:01:55.1]} 18. Nxe5
{[%clk 0:02:04.5]} 18... dxe5 {[%clk 0:01:56]} 19. Qb3 {[%clk 0:02:05]} 19...
Ba6 {[%clk 0:01:51.9]} 20. Bxa6 {[%clk 0:02:02.7]} 20... Rxa6 {[%clk 0:01:52.8]}
21. Nd2 {[%clk 0:02:01.9]} 21... Bxb4 {[%clk 0:01:52]} 22. cxb4 {[%clk
0:02:00.1]} 22... Nh5 {[%clk 0:01:45]} 23. b5 {[%clk 0:01:53.6]} 23... Raa8
{[%clk 0:01:35.6]} 24. b6 {[%clk 0:01:50.4]} 24... Qb8 {[%clk 0:01:31.4]} 25. b7
{[%clk 0:01:43.3]} 25... Ra7 {[%clk 0:01:26.9]} 26. Rb1 {[%clk 0:01:43.8]} 26...
Nxg3 {[%clk 0:01:26.6]} 27. hxg3 {[%clk 0:01:44.6]} 27... Qc7 {[%clk 0:01:01.7]}
28. b8=Q {[%clk 0:01:39.8]} 1-0

[Event "Late-Titled-Tuesday-Blitz-January-23-2024"]
[Site "Chess.com"]
[Date "2024.01.23"]
[Round "3"]
[White "sakkikuska"]
[Black "Rdeux42"]
[Result "1-0"]
[WhiteElo "2660"]
[BlackElo "2457"]
[TimeControl "180+1"]
[EndTime "14:25:42 PST"]
[Termination "sakkikuska won by resignation"]

1. e4 {[%clk 0:02:59.8]} 1... c6 {[%clk 0:02:55.1]} 2. d4 {[%clk 0:03:00]} 2...
d5 {[%clk 0:02:55.5]} 3. Nc3 {[%clk 0:03:00.8]} 3... dxe4 {[%clk 0:02:54.9]} 4.
Nxe4 {[%clk 0:03:01.7]} 4... Bf5 {[%clk 0:02:54.1]} 5. Ng3 {[%clk 0:03:02.2]}
5... Bg6 {[%clk 0:02:54.3]} 6. h4 {[%clk 0:03:02.8]} 6... h6 {[%clk 0:02:54.3]}
7. Nf3 {[%clk 0:03:02.7]} 7... Nd7 {[%clk 0:02:53.9]} 8. h5 {[%clk 0:03:03.2]}
8... Bh7 {[%clk 0:02:54]} 9. Bd3 {[%clk 0:03:04.1]} 9... Bxd3 {[%clk 0:02:54.1]}
10. Qxd3 {[%clk 0:03:05]} 10... Ngf6 {[%clk 0:02:54.8]} 11. Bd2 {[%clk
0:03:05.4]} 11... e6 {[%clk 0:02:54.6]} 12. O-O-O {[%clk 0:03:05.7]} 12... Be7
{[%clk 0:02:55.3]} 13. Kb1 {[%clk 0:03:05]} 13... O-O {[%clk 0:02:55.9]} 14. Ne4
{[%clk 0:03:05.1]} 14... c5 {[%clk 0:02:56.4]} 15. g4 {[%clk 0:03:04.2]} 15...
Nxg4 {[%clk 0:02:54.6]} 16. Qe2 {[%clk 0:03:03]} 16... f5 {[%clk 0:02:17]} 17.
Nc3 {[%clk 0:02:02]} 17... Qb6 {[%clk 0:02:09.9]} 18. Ne5 {[%clk 0:01:50.2]}
18... Ndxe5 {[%clk 0:02:04.6]} 19. dxe5 {[%clk 0:01:51.1]} 19... c4 {[%clk
0:01:33.3]} 20. f3 {[%clk 0:01:38.1]} 20... Qf2 {[%clk 0:01:13.3]} 21. fxg4
{[%clk 0:01:36.4]} 21... Qxe2 {[%clk 0:01:08.7]} 22. Nxe2 {[%clk 0:01:37.3]}
22... fxg4 {[%clk 0:01:09.5]} 23. Nf4 {[%clk 0:01:32.6]} 1-0

[Event "Late-Titled-Tuesday-Blitz-January-23-2024"]
[Site "Chess.com"]
[Date "2024.01.23"]
[Round "3"]
[White "Vladimir_Zakhartsov"]
[Black "LyonBeast"]
[Result "0-1"]
[WhiteElo "2852"]
[BlackElo "3170"]
[TimeControl "180+1"]
[EndTime "14:25:45 PST"]
[Termination "LyonBeast won by resignation"]

1. d4 {[%clk 0:02:50.4]} 1... Nf6 {[%clk 0:02:58.9]} 2. c4 {[%clk 0:02:50.6]}
2... g6 {[%clk 0:02:59.5]} 3. Nc3 {[%clk 0:02:49.1]} 3... d5 {[%clk 0:02:59.9]}
4. cxd5 {[%clk 0:02:49.2]} 4... Nxd5 {[%clk 0:03:00.8]} 5. e4 {[%clk 0:02:49.7]}
5... Nxc3 {[%clk 0:03:01.3]} 6. bxc3 {[%clk 0:02:50.6]} 6... Bg7 {[%clk
0:03:01.8]} 7. Bb5+ {[%clk 0:02:51.3]} 7... c6 {[%clk 0:03:01.9]} 8. Ba4 {[%clk
0:02:51.8]} 8... b5 {[%clk 0:03:02.2]} 9. Bb3 {[%clk 0:02:52.4]} 9... a5 {[%clk
0:03:01.6]} 10. Nf3 {[%clk 0:02:52.1]} 10... a4 {[%clk 0:03:01.9]} 11. Bc2
{[%clk 0:02:52.2]} 11... c5 {[%clk 0:03:01.1]} 12. Rb1 {[%clk 0:02:51.2]} 12...
O-O {[%clk 0:02:55.5]} 13. O-O {[%clk 0:02:41.2]} 13... Nc6 {[%clk 0:02:52.4]}
14. Be3 {[%clk 0:02:33.4]} 14... cxd4 {[%clk 0:02:49.4]} 15. cxd4 {[%clk
0:02:33.7]} 15... Bg4 {[%clk 0:02:49.1]} 16. d5 {[%clk 0:02:16.1]} 16... Ne5
{[%clk 0:02:48.6]} 17. Bd3 {[%clk 0:02:02.5]} 17... Bxf3 {[%clk 0:02:17.7]} 18.
gxf3 {[%clk 0:02:01.8]} 18... Qd7 {[%clk 0:02:18.1]} 19. Bxb5 {[%clk 0:01:24.8]}
19... Qh3 {[%clk 0:02:17.6]} 20. Be2 {[%clk 0:01:25.1]} 20... g5 {[%clk
0:02:08.8]} 21. Kh1 {[%clk 0:01:19.9]} 21... Nxf3 {[%clk 0:02:06.2]} 22. Bf4
{[%clk 0:01:10.3]} 22... Nh4 {[%clk 0:01:53.3]} 23. Rg1 {[%clk 0:01:03.7]} 23...
gxf4 {[%clk 0:01:53.5]} 24. Qd4 {[%clk 0:00:31.8]} 24... Ng6 {[%clk 0:01:53.2]}
0-1